[Event "55th Rubinstein Memorial-C 2019"]
[Site "Polanica-Zdroj"]
[Date "2019.08.21"]
[Round "5.2"]
[White "Majek, Kacper"]
[Black "Kaliszuk, Kamil"]
[Result "1/2-1/2"]
[ECO "C54"]
[WhiteElo "1984"]
[BlackElo "1853"]
[Annotator "NA"]
[PlyCount "156"]
[EventDate "2019.08.17"]
[EventType "swiss"]
[EventCountry "POL"]
[SourceTitle "playchess.com"]
[Source "ChessBase"]
[SourceQuality "1"]
[TimeControl "40/5400+30:1800+30"]

1. e4 {[%emt 0:00:00]} e5 {[%emt 0:00:00]} 2. Nf3 {[%emt 0:00:31]} Nc6 {[%emt 0:00:29]} 3. Bc4 {[%emt 0:00:10]} Bc5 {[%emt 0:00:09]} 4. c3 {[%emt 0:00:05]} Nf6 {[%emt 0:00:06]} 5. d4 {[%emt 0:02:34]} exd4 {[%emt 0:00:59]} 6. cxd4 {[%emt 0:00:05]} Bb4+ {[%emt 0:02:18]} 7. Nc3 {[%emt 0:00:10]} d5 {[%emt 0:19:30]} 8. exd5 {[%emt 0:00:17]} Nxd5 {[%emt 0:01:48]} 9. O-O {[%emt 0:00:16]} Nxc3 {[%emt 0:10:24]} 10. bxc3 {[%emt 0:00:07]} Be7 {[%emt 0:00:23] C54: Giuoco Piano: 4 c3 Nf6, main lines with 5 d4 and 5 d3} ({But not} 10... Bxc3 $2 11. Qb3 $18) 11. Re1 {[%emt 0:12:57]} O-O {[%emt 0:05:30]} 12. Bf4 {[%emt 0:01:16]} Bg4 $146 {[%emt 0:07:19]} ({Predecessor:} 12... Bf6 13. a4 Bg4 14. h3 Bxf3 15. Qxf3 Bg5 16. Bg3 Na5 17. Ba2 Nc6 18. Rab1 {1-0 (28) Martin Del Campo C,R (2407)-Fiori,N Dos Hermanas 2004}) 13. Rb1 {[%emt 0:00:26]} Na5 {[%emt 0:04:31]} 14. Be2 {[%emt 0:00:54]} c5 {[%emt 0:10:13]} 15. Qa4 {[%emt 0:05:26]} Bd7 {[%emt 0:06:12]} 16. Qc2 {[%emt 0:05:04]} b6 {[%emt 0:03:11]} 17. Bd3 {[%emt 0:02:25]} g6 {[%emt 0:03:37]} 18. dxc5 {[%emt 0:03:00]} Bxc5 {[%emt 0:01:46]} 19. Ne5 {[%emt 0:02:27]} Nc6 {[%emt 0:05:51]} 20. Nxd7 {[%emt 0:00:54]} Qxd7 {[%emt 0:00:10]} 21. Be4 {[%emt 0:01:22]} Rac8 {[%emt 0:01:49]} 22. Rbd1 {[%emt 0:00:04]} Qg4 {[%emt 0:00:24]} 23. Bh6 {[%emt 0:00:39]} Ne5 {[%emt 0:03:21]} 24. Bxf8 {[%emt 0:00:21]} Rxf8 {[%emt 0:00:09]} 25. Qe2 {[%emt 0:01:34]} Re8 {[%emt 0:00:55]} 26. Qxg4 {[%emt 0:03:30]} Nxg4 {[%emt 0:00:04]} 27. Rd2 {[%emt 0:00:08]} Kf8 {[%emt 0:01:01]} 28. Rde2 {[%emt 0:02:47]} Nxf2 {[%emt 0:03:39]} 29. Kf1 {[%emt 0:00:15]} Ng4 {[%emt 0:03:07]} 30. g3 {[%emt 0:11:00]} Ne3+ {[%emt 0:00:11]} 31. Rxe3 {[%emt 0:00:05]} Bxe3 {[%emt 0:00:02]} 32. Bc2 {[%emt 0:01:54]} Bd2 {[%emt 0:00:47]} 33. Rxe8+ {[%emt 0:00:31]} Kxe8 {[%emt 0:00:22]} 34. c4 {[%emt 0:00:08]} Ke7 {[%emt 0:00:25]} 35. Ke2 {[%emt 0:00:09]} Bb4 {[%emt 0:00:17]} 36. Kf3 {[%emt 0:01:23]} Ke6 {[%emt 0:00:15]} 37. Bb3 {[%emt 0:11:21]} Ke5 {[%emt 0:00:49]} 38. Ba4 {[%emt 0:04:54]} Bc5 {[%emt 0:01:00]} 39. Bb5 {[%emt 0:00:15]} f5 {[%emt 0:02:28]} 40. h3 {[%emt 0:01:18]} g5 {[%emt 0:00:30]} 41. Be8 {[%emt 0:32:05]} h6 {[%emt 0:31:03]} 42. Bd7 {[%emt 0:04:32]} Bd6 {[%emt 0:00:37]} 43. Bc8 {[%emt 0:00:49]} Bc7 {[%emt 0:00:31]} 44. Bd7 {[%emt 0:00:34]} Bd6 {[%emt 0:00:11]} ({Black should play} 44... Bd8 $17) 45. Bc8 {[%emt 0:00:12]} Ba3 {[%emt 0:00:10]} 46. Bd7 {[%emt 0:00:55]} Bc1 {[%emt 0:00:11]} 47. Bc8 {[%emt 0:01:52]} Bd2 {[%emt 0:01:15]} 48. Bd7 {[%emt 0:00:06]} Be1 {[%emt 0:00:10]} 49. Be8 {[%emt 0:00:41]} Kd4 {[%emt 0:00:54]} 50. Bf7 {[%emt 0:02:07]} Bd2 {[%emt 0:00:24]} 51. Be6 $17 {[%emt 0:00:54]} f4 {[%emt 0:01:09]} 52. Bf7 {[%emt 0:00:37]} Bc1 {[%emt 0:00:19]} 53. h4 {[%emt 0:01:57]} Bd2 {[%emt 0:00:47]} 54. hxg5 {[%emt 0:00:10]} hxg5 {[%emt 0:00:01]} 55. gxf4 {[%emt 0:00:09]} Bxf4 {[%emt 0:00:29]} 56. Be6 {[%emt 0:00:36]} Kc3 {[%emt 0:00:27]} 57. Ke4 {[%emt 0:09:57]} Kb2 {[%emt 0:00:46]} 58. Kd5 {[%emt 0:00:48]} Be3 {[%emt 0:00:22]} 59. a4 {[%emt 0:00:14]} Ka3 {[%emt 0:00:19]} 60. Bd7 {[%emt 0:00:11]} Kb4 {[%emt 0:00:25]} 61. Ke4 {[%emt 0:02:03]} Bf2 {[%emt 0:00:16]} 62. Bb5 {[%emt 0:02:23]} g4 {[%emt 0:00:26]} 63. Kf4 {[%emt 0:00:29]} g3 {[%emt 0:00:02]} 64. Kf3 {[%emt 0:00:06]} Ka5 {[%emt 0:00:16]} 65. Bc6 {[%emt 0:01:06]} Kb4 {[%emt 0:00:21]} 66. Bb5 {[%emt 0:00:05]} Kb3 {[%emt 0:00:11]} 67. Kg2 {[%emt 0:00:14]} Kb4 {[%emt 0:00:19]} 68. Kf3 {[%emt 0:00:05]} Kc5 {[%emt 0:00:05]} 69. Kg2 {[%emt 0:00:07]} Kd6 {[%emt 0:00:16]} 70. Kf3 {[%emt 0:00:07]} Kc7 {[%emt 0:00:05]} 71. Ba6 {[%emt 0:00:22]} Kc6 {[%emt 0:00:41]} 72. Kg2 {[%emt 0:00:14]} Kc5 {[%emt 0:00:10]} 73. Bb5 {[%emt 0:00:06]} Kb4 {[%emt 0:00:07]} 74. Kf3 {[%emt 0:00:06]} Ka5 {[%emt 0:00:15]} 75. Bc6 {[%emt 0:00:11]} a6 {[%emt 0:00:14]} 76. Bb7 {[%emt 0:00:23]} b5 {[%emt 0:00:45]} 77. cxb5 {[%emt 0:00:04]} axb5 {[%emt 0:00:02]} 78. axb5 {[%emt 0:00:07]} Kxb5 1/2-1/2

[Event "55th Rubinstein Memorial-C 2019"]
[Site "Polanica-Zdroj"]
[Date "2019.08.21"]
[Round "5.3"]
[White "Kardys, Zbigniew"]
[Black "Gajzner, Ryszard"]
[Result "1/2-1/2"]
[ECO "B73"]
[WhiteElo "1949"]
[BlackElo "1740"]
[Annotator "NA"]
[PlyCount "106"]
[EventDate "2019.08.17"]
[EventType "swiss"]
[EventCountry "POL"]
[SourceTitle "playchess.com"]
[Source "ChessBase"]
[SourceQuality "1"]
[TimeControl "40/5400+30:1800+30"]

1. e4 {[%emt 0:00:00]} c5 {[%emt 0:00:00]} 2. Nf3 {[%emt 0:00:00]} g6 {[%emt 0:00:00]} 3. Nc3 {[%emt 0:03:08]} Bg7 {[%emt 0:00:00]} 4. d4 {[%emt 0:00:04]} cxd4 {[%emt 0:00:02]} 5. Nxd4 {[%emt 0:00:07]} Nc6 {[%emt 0:00:06]} 6. Be3 {[%emt 0:02:38]} Nf6 {[%emt 0:00:10]} 7. Be2 {[%emt 0:01:53]} d6 {[%emt 0:01:26]} 8. O-O {[%emt 0:02:25]} O-O {[%emt 0:00:25]} 9. h3 {[%emt 0:08:43]} Bd7 {[%emt 0:04:59]} 10. Qd2 {[%emt 0:06:06]} Nxd4 {[%emt 0:01:09]} 11. Bxd4 {[%emt 0:00:04]} Bc6 {[%emt 0:00:21]} 12. Bf3 {[%emt 0:04:22]} Qa5 {[%emt 0:11:33] B73: Sicilian Dragon: Classical System without 9 Nb3} 13. Rfd1 {[%emt 0:10:42]} Rfe8 {[%emt 0:02:19]} 14. a3 $146 {[%emt 0:18:17]} ({Predecessor:} 14. Bxf6 Bxf6 15. Nd5 Qxd2 16. Nxf6+ exf6 17. Rxd2 Bxe4 18. Bxe4 Rxe4 19. Rxd6 Re2 20. Rd7 {1-0 (57) Tofan,I (2219)-Gurevich,M (2649) Izmir 2002}) 14... Rac8 {[%emt 0:18:48]} 15. b4 {[%emt 0:19:24]} Qc7 {[%emt 0:02:43]} 16. Rac1 {[%emt 0:03:37]} b5 {[%emt 0:14:09]} 17. Qe3 {[%emt 0:11:30]} Qb7 {[%emt 0:05:42]} 18. Nd5 {[%emt 0:03:10]} Bxd5 {[%emt 0:02:00]} 19. exd5 {[%emt 0:00:03]} Nd7 {[%emt 0:01:52]} 20. Bxg7 {[%emt 0:00:50]} Kxg7 {[%emt 0:00:06]} 21. Bg4 {[%emt 0:00:45]} Rc4 {[%emt 0:08:47]} 22. Bxd7 {[%emt 0:00:57]} Qxd7 {[%emt 0:00:11]} 23. Rd4 {[%emt 0:00:44]} Rec8 {[%emt 0:00:41]} 24. Rxc4 {[%emt 0:00:25]} Rxc4 {[%emt 0:00:10]} 25. Re1 {[%emt 0:00:12]} Rxc2 {[%emt 0:05:54]} 26. Qxe7 {[%emt 0:00:15]} Qf5 {[%emt 0:02:08]} 27. Qxa7 {[%emt 0:00:32]} Qxd5 {[%emt 0:00:13]} 28. Qe3 {[%emt 0:01:09]} Rd2 {[%emt 0:00:37]} 29. Qc3+ {[%emt 0:00:30]} Qd4 {[%emt 0:01:23]} 30. Qxd4+ {[%emt 0:00:19]} Rxd4 {[%emt 0:00:05]} 31. Re8 {[%emt 0:00:11]} Rd1+ {[%emt 0:01:12]} 32. Kh2 {[%emt 0:00:01]} Kf6 {[%emt 0:01:18]} 33. Ra8 {[%emt 0:01:14]} Rd3 {[%emt 0:01:41]} 34. Ra5 {[%emt 0:00:16]} Ke6 {[%emt 0:00:19]} 35. f3 {[%emt 0:01:16]} Rd5 {[%emt 0:01:47]} 36. Kg3 {[%emt 0:00:29]} h5 {[%emt 0:01:10]} 37. h4 {[%emt 0:00:56]} Rf5 {[%emt 0:01:28]} 38. Kf2 {[%emt 0:00:22]} Kd7 {[%emt 0:00:30]} 39. Ke3 {[%emt 0:00:33]} Kc6 {[%emt 0:00:46]} 40. g4 $11 {[%emt 0:00:40]} Re5+ {[%emt 0:03:31]} 41. Kf4 {[%emt 0:30:28]} f6 {[%emt 0:30:42]} 42. a4 {[%emt 0:00:46]} bxa4 {[%emt 0:00:48]} 43. Rxa4 {[%emt 0:00:01]} g5+ {[%emt 0:01:40]} 44. Kg3 {[%emt 0:00:02]} gxh4+ {[%emt 0:01:02]} 45. Kxh4 {[%emt 0:00:04]} hxg4 {[%emt 0:00:32]} 46. Kxg4 {[%emt 0:00:31]} Kb5 {[%emt 0:01:05]} 47. Ra8 {[%emt 0:00:35]} f5+ {[%emt 0:02:15]} 48. Kg5 {[%emt 0:00:24]} Kxb4 {[%emt 0:00:29]} 49. f4 {[%emt 0:00:05]} Rb5 {[%emt 0:00:59]} 50. Rc8 {[%emt 0:00:56]} Rc5 {[%emt 0:01:22]} 51. Rd8 {[%emt 0:00:25]} Rd5 {[%emt 0:00:28]} 52. Rc8 {[%emt 0:00:18]} Rc5 {[%emt 0:00:32]} 53. Rd8 {[%emt 0:00:01]} Rd5 {[%emt 0:00:14]} 1/2-1/2

[Event "55th Rubinstein Memorial-C 2019"]
[Site "Polanica-Zdroj"]
[Date "2019.08.21"]
[Round "5.4"]
[White "Janzer, Hubert"]
[Black "Szydelko, Michal"]
[Result "1-0"]
[ECO "D00"]
[WhiteElo "1803"]
[BlackElo "1752"]
[Annotator "NA"]
[PlyCount "97"]
[EventDate "2019.08.17"]
[EventType "swiss"]
[EventCountry "POL"]
[SourceTitle "playchess.com"]
[Source "ChessBase"]
[SourceQuality "1"]
[TimeControl "40/5400+30:1800+30"]

1. d4 {[%emt 0:00:00]} d5 {[%emt 0:00:00]} 2. Bf4 {[%emt 0:00:00]} Nf6 {[%emt 0:00:19]} 3. e3 {[%emt 0:00:20]} Bf5 {[%emt 0:01:34]} 4. c4 {[%emt 0:01:44]} e6 {[%emt 0:00:23]} 5. Qb3 {[%emt 0:04:41]} (5. Nf3 Bxb1 6. Rxb1 Bb4+ 7. Ke2 dxc4 8. Qa4+ Nc6 9. Ne5 a5 10. Nxc6 Qd7 11. Rc1 Nd5 12. Rxc4 Nb6 13. Qc2 Nxc4 14. Nxb4 Nxb2 {1-0 (41) Nakamura,H (2769)-Giri,A (2782) Leuven 2018}) 5... Qc8 {[%emt 0:09:19]} 6. Nc3 {[%emt 0:03:20] D00: 1 d4 d5: Unusual lines} c6 {[%emt 0:08:12]} 7. Rc1 {[%emt 0:05:55]} dxc4 {[%emt 0:11:37]} 8. Bxc4 {[%emt 0:01:03]} Nh5 $146 {[%emt 0:01:27]} ({Predecessor:} 8... Nbd7 9. f3 Nb6 10. e4 Nxc4 11. Qxc4 Bg6 12. Nb5 Kd7 13. Nc7 Rb8 14. d5 exd5 15. exd5 cxd5 16. Qb5+ Kd8 17. Nxd5 Qe6+ 18. Ne2 Nxd5 19. Rd1 {1-0 (19) Colpe,M (2403)-Brinkmann,F (2108) Hamburg 2016}) 9. Bg3 {[%emt 0:06:00]} Nxg3 {[%emt 0:01:33]} 10. hxg3 {[%emt 0:00:08]} Nd7 {[%emt 0:06:19]} 11. Nf3 {[%emt 0:02:31]} (11. e4 $5 {[%cal Re4f5]} Bg6 12. Nge2 $14) 11... Be7 {[%emt 0:02:21]} 12. O-O {[%emt 0:04:10]} O-O {[%emt 0:08:45]} 13. e4 {[%emt 0:01:25]} Bg6 {[%emt 0:05:40]} 14. Rfd1 {[%emt 0:09:32]} Nb6 {[%emt 0:04:17]} 15. Be2 {[%emt 0:03:18]} Qb8 {[%emt 0:05:01]} 16. a4 {[%emt 0:08:06]} Rd8 {[%emt 0:04:19]} 17. a5 {[%emt 0:03:09]} Nd7 {[%emt 0:01:07]} 18. d5 {[%emt 0:07:10]} Nc5 {[%emt 0:04:23]} 19. Qc4 {[%emt 0:00:29]} Nxe4 {[%emt 0:07:12]} 20. dxc6 {[%emt 0:01:03]} Rxd1+ {[%emt 0:07:42]} 21. Bxd1 {[%emt 0:01:22]} Nd6 {[%emt 0:00:29]} 22. Qa4 {[%emt 0:01:28]} bxc6 {[%emt 0:00:50]} 23. Qxc6 {[%emt 0:00:27]} Qc8 {[%emt 0:03:44]} 24. Ne5 {[%emt 0:00:38]} Rb8 {[%emt 0:01:06]} 25. Na4 {[%emt 0:03:53]} Be4 {[%emt 0:01:18]} 26. Qxc8+ {[%emt 0:00:45]} Rxc8 {[%emt 0:00:08]} 27. Rxc8+ {[%emt 0:00:42]} Nxc8 {[%emt 0:00:04]} 28. Bf3 {[%emt 0:04:52]} Bxf3 {[%emt 0:01:25]} 29. gxf3 {[%emt 0:00:10]} Bf6 {[%emt 0:00:30]} 30. Nc6 {[%emt 0:00:28]} Kf8 {[%emt 0:00:53]} 31. b4 {[%emt 0:01:02]} Ke8 $1 {[%emt 0:00:18]} 32. b5 {[%emt 0:00:16]} Bd8 {[%emt 0:00:40]} (32... Kd7 $1 $11) 33. Nc5 {[%emt 0:04:59]} Ne7 {[%emt 0:02:03]} 34. Nxe7 {[%emt 0:05:39]} Bxe7 {[%emt 0:00:06]} ({Reject} 34... Kxe7 {[#]} 35. b6 $1 $16 {[%mdl 576] Promotion}) 35. Nd3 {[%emt 0:01:36]} Kd8 {[%emt 0:01:38]} 36. Ne5 {[%emt 0:00:16]} Kc8 {[%emt 0:00:33]} 37. Nxf7 {[%emt 0:00:28]} Kb7 $2 {[%emt 0:00:36]} (37... Bb4 $11 {and Black has nothing to worry.}) 38. Ne5 {[%emt 0:00:32]} Bd6 {[%emt 0:00:23]} ({Better is} 38... a6 $14) 39. Nc4 {[%emt 0:00:38]} Bc7 $18 {[%emt 0:00:38]} (39... Bb4 $16 40. a6+ Kb8) 40. f4 {[%emt 0:00:43]} Kc8 {[%emt 0:00:23]} 41. Kg2 {[%emt 0:30:25]} Kd7 {[%emt 0:30:19]} 42. Kf3 {[%emt 0:00:22]} g6 {[%emt 0:00:23]} 43. Kg4 {[%emt 0:00:11]} Bd8 {[%emt 0:00:14]} 44. Kf3 {[%emt 0:01:02]} Bc7 {[%emt 0:00:03]} 45. Ne5+ {[%emt 0:01:56]} Kd6 {[%emt 0:00:29]} 46. Ke4 {[%emt 0:01:15]} Bb8 {[%emt 0:02:13]} 47. b6 {[%emt 0:00:52]} axb6 {[%emt 0:00:00]} 48. axb6 {[%emt 0:00:07]} h5 {[%emt 0:00:33]} 49. f3 {[%emt 0:00:37] Kd5+} 1-0

[Event "55th Rubinstein Memorial-C 2019"]
[Site "Polanica-Zdroj"]
[Date "2019.08.21"]
[Round "5.5"]
[White "Zalega, Maciej"]
[Black "Karnasiewicz, Robert"]
[Result "1-0"]
[ECO "B36"]
[WhiteElo "1429"]
[BlackElo "1803"]
[Annotator "NA"]
[PlyCount "69"]
[EventDate "2019.08.17"]
[EventType "swiss"]
[EventCountry "POL"]
[SourceTitle "playchess.com"]
[Source "ChessBase"]
[SourceQuality "1"]
[TimeControl "40/5400+30:1800+30"]

1. e4 {[%emt 0:00:00]} c5 {[%emt 0:00:00]} 2. Nf3 {[%emt 0:00:00]} Nc6 {[%emt 0:00:00]} 3. d4 {[%emt 0:00:00]} cxd4 {[%emt 0:00:00]} 4. Nxd4 {[%emt 0:00:00]} g6 {[%emt 0:00:00]} 5. c4 {[%emt 0:00:35]} Nf6 {[%emt 0:00:47]} 6. Nc3 {[%emt 0:00:42]} d6 {[%emt 0:00:05]} 7. Be2 {[%emt 0:02:20]} Nxd4 {[%emt 0:00:13]} 8. Qxd4 {[%emt 0:01:04]} Bg7 {[%emt 0:00:03]} 9. Be3 $14 {[%emt 0:17:54]} O-O {[%emt 0:00:09]} 10. Qd2 {[%emt 0:07:29]} Be6 {[%emt 0:04:01]} 11. f3 {[%emt 0:05:56]} Qa5 {[%emt 0:04:35]} 12. O-O {[%emt 0:02:21]} Rfc8 {[%emt 0:00:16]} 13. Nd5 {[%emt 0:06:38]} Qxd2 {[%emt 0:00:41]} 14. Bxd2 {[%emt 0:00:14]} Bxd5 {[%emt 0:00:00]} 15. exd5 {[%emt 0:00:17]} b5 {[%emt 0:00:10]} 16. Rac1 {[%emt 0:06:14]} bxc4 {[%emt 0:00:09]} 17. Bxc4 {[%emt 0:02:57]} Nd7 {[%emt 0:00:56]} 18. b3 {[%emt 0:04:51]} Nb6 {[%emt 0:00:48]} 19. Rfe1 {[%emt 0:01:58]} Nxc4 {[%emt 0:00:34]} 20. Rxc4 {[%emt 0:02:08]} Rxc4 {[%emt 0:00:12]} 21. bxc4 {[%emt 0:00:01]} Kf8 {[%emt 0:00:10]} 22. Rb1 {[%emt 0:04:46]} Bd4+ {[%emt 0:00:54]} 23. Kf1 {[%emt 0:00:55]} Rc8 {[%emt 0:01:37]} 24. Rb4 {[%emt 0:01:13]} Bc5 {[%emt 0:00:43]} 25. Rb3 {[%emt 0:06:35]} Ke8 {[%emt 0:01:03]} 26. Ke2 {[%emt 0:00:22]} Bg1 {[%emt 0:01:09]} 27. Kd3 {[%emt 0:08:14]} Bxh2 {[%emt 0:02:25]} 28. Be3 {[%emt 0:00:06]} Ra8 {[%emt 0:00:53]} 29. Rb7 {[%emt 0:00:15]} a6 {[%emt 0:00:20]} 30. Bg5 {[%emt 0:00:32]} f6 {[%emt 0:00:16]} 31. Bxf6 {[%emt 0:00:10]} Be5 {[%emt 0:14:11]} 32. Bxe5 {[%emt 0:00:17]} dxe5 {[%emt 0:00:01]} 33. c5 {[%emt 0:00:44]} Rc8 {[%emt 0:00:46]} 34. c6 {[%emt 0:00:05]} e6 {[%emt 0:00:27]} 35. Rxh7 {[%emt 0:00:16]} 1-0

[Event "55th Rubinstein Memorial-C 2019"]
[Site "Polanica-Zdroj"]
[Date "2019.08.21"]
[Round "5.6"]
[White "Kroliczek, Gabriela"]
[Black "Kurtycz, Maciej"]
[Result "1-0"]
[ECO "B23"]
[WhiteElo "1787"]
[BlackElo "1689"]
[Annotator "NA"]
[PlyCount "59"]
[EventDate "2019.08.17"]
[EventType "swiss"]
[EventCountry "POL"]
[SourceTitle "playchess.com"]
[Source "ChessBase"]
[SourceQuality "1"]
[TimeControl "40/5400+30:1800+30"]

1. e4 {[%emt 0:00:00]} c5 {[%emt 0:00:00]} 2. Nc3 {[%emt 0:00:00]} e6 {[%emt 0:00:00]} 3. d4 {[%emt 0:00:00]} cxd4 {[%emt 0:00:22]} 4. Qxd4 {[%emt 0:00:00]} Nc6 {[%emt 0:00:19]} 5. Qd2 {[%emt 0:00:00]} Nf6 {[%emt 0:00:59]} 6. f3 {[%emt 0:00:22]} Be7 {[%emt 0:01:04]} 7. b3 {[%emt 0:00:18]} d6 {[%emt 0:01:11]} 8. Bb2 {[%emt 0:00:07]} O-O {[%emt 0:00:17]} 9. O-O-O {[%emt 0:00:11]} a6 {[%emt 0:00:34]} 10. g4 {[%emt 0:00:10]} e5 {[%emt 0:00:14]} 11. Kb1 {[%emt 0:01:09]} Be6 {[%emt 0:05:49]} 12. Nge2 {[%emt 0:00:55]} Qc7 {[%emt 0:01:13]} 13. Ng3 {[%emt 0:01:54]} Nd4 {[%emt 0:01:34]} 14. Qg2 {[%emt 0:02:26]} b5 {[%emt 0:01:35]} 15. Bd3 {[%emt 0:00:12]} b4 {[%emt 0:05:36]} 16. Na4 {[%emt 0:07:44]} Nb5 {[%emt 0:00:21]} 17. Qd2 {[%emt 0:00:06]} d5 {[%emt 0:00:29]} 18. g5 {[%emt 0:03:50]} Ne8 {[%emt 0:04:51]} 19. exd5 {[%emt 0:07:40]} Bxd5 {[%emt 0:00:15]} 20. Bxb5 {[%emt 0:01:38]} Bxf3 {[%emt 0:00:26]} 21. Bd3 {[%emt 0:01:59]} Bxh1 {[%emt 0:00:43]} 22. Rxh1 {[%emt 0:00:05]} Rd8 {[%emt 0:02:24]} 23. Qe2 {[%emt 0:00:36]} Bxg5 {[%emt 0:05:41]} 24. Bxe5 {[%emt 0:01:42]} Qc6 {[%emt 0:01:29]} 25. Rg1 {[%emt 0:07:11]} f6 {[%emt 0:00:43]} 26. Bb2 {[%emt 0:03:47]} Nd6 {[%emt 0:04:54]} 27. Qh5 {[%emt 0:03:51]} g6 {[%emt 0:02:20]} 28. Bxg6 {[%emt 0:01:05]} hxg6 {[%emt 0:00:01]} 29. Qxg6+ {[%emt 0:00:05]} Kh8 {[%emt 0:00:07]} 30. Qxg5 {[%emt 0:00:05]} 1-0

[Event "55th Rubinstein Memorial-C 2019"]
[Site "Polanica-Zdroj"]
[Date "2019.08.21"]
[Round "5.7"]
[White "Rzenca, Jerzy"]
[Black "Burdzicki, Stanislaw"]
[Result "1/2-1/2"]
[ECO "B23"]
[WhiteElo "1419"]
[BlackElo "1785"]
[Annotator "NA"]
[PlyCount "63"]
[EventDate "2019.08.17"]
[EventType "swiss"]
[EventCountry "POL"]
[SourceTitle "playchess.com"]
[Source "ChessBase"]
[SourceQuality "1"]
[TimeControl "40/5400+30:1800+30"]

1. e4 {[%emt 0:00:00]} c5 {[%emt 0:05:42]} 2. Nc3 {[%emt 0:00:00]} Nc6 {[%emt 0:00:04]} 3. f4 {[%emt 0:00:00]} g6 {[%emt 0:00:31]} 4. Nf3 {[%emt 0:00:00]} Bg7 {[%emt 0:01:55]} 5. Bb5 {[%emt 0:00:32]} Nd4 {[%emt 0:02:32]} 6. O-O {[%emt 0:00:27]} Nxb5 {[%emt 0:01:24]} 7. Nxb5 {[%emt 0:00:09]} d5 {[%emt 0:00:03]} 8. exd5 {[%emt 0:01:13]} a6 {[%emt 0:00:21]} 9. Nc3 {[%emt 0:00:05]} Nf6 {[%emt 0:00:06]} 10. d4 {[%emt 0:00:11]} Nxd5 {[%emt 0:01:20]} 11. dxc5 {[%emt 0:00:11]} Nxc3 {[%emt 0:00:59]} 12. Qxd8+ {[%emt 0:00:05]} Kxd8 {[%emt 0:00:04]} 13. bxc3 {[%emt 0:00:06]} Bxc3 {[%emt 0:02:58]} 14. Rb1 {[%emt 0:00:08]} Kc7 {[%emt 0:01:58]} 15. Rb3 {[%emt 0:00:10]} Bf6 {[%emt 0:07:10]} 16. Bd2 {[%emt 0:01:28]} a5 {[%emt 0:10:23]} 17. Ra3 {[%emt 0:16:24]} a4 {[%emt 0:04:20]} 18. Bc3 {[%emt 0:11:31]} Be6 {[%emt 0:08:20]} 19. Ng5 {[%emt 0:11:09]} Bd5 {[%emt 0:03:46]} 20. Re1 {[%emt 0:04:58]} Bxc3 {[%emt 0:13:24]} 21. Rxc3 {[%emt 0:01:43]} h6 {[%emt 0:00:55]} 22. Nxf7 {[%emt 0:00:18]} Rhe8 {[%emt 0:02:47]} 23. Ne5 {[%emt 0:17:48]} Bxa2 {[%emt 0:02:50]} 24. Ra3 {[%emt 0:02:00]} Be6 {[%emt 0:05:15]} 25. Nxg6 {[%emt 0:05:48]} Bf5 {[%emt 0:00:18]} 26. Rxe7+ {[%emt 0:00:06]} Rxe7 {[%emt 0:00:12]} 27. Nxe7 {[%emt 0:00:05]} Bxc2 {[%emt 0:00:10]} 28. Nd5+ {[%emt 0:00:07]} Kd8 {[%emt 0:00:29]} 29. Ne3 {[%emt 0:11:48]} Bb3 {[%emt 0:01:08]} 30. Nf5 {[%emt 0:01:25]} Kc7 {[%emt 0:08:55]} 31. Nd4 {[%emt 0:01:05]} Bc4 {[%emt 0:00:19]} 32. g4 {[%emt 0:01:56]} 1/2-1/2

[Event "55th Rubinstein Memorial-C 2019"]
[Site "Polanica-Zdroj"]
[Date "2019.08.21"]
[Round "5.8"]
[White "Rog, Bartlomiej"]
[Black "Rakita, Efim"]
[Result "1-0"]
[ECO "C60"]
[WhiteElo "1540"]
[BlackElo "1960"]
[Annotator "NA"]
[PlyCount "97"]
[EventDate "2019.08.17"]
[EventType "swiss"]
[EventCountry "POL"]
[SourceTitle "playchess.com"]
[Source "ChessBase"]
[SourceQuality "1"]
[TimeControl "40/5400+30:1800+30"]

1. e4 {[%emt 0:00:00]} e5 {[%emt 0:00:00]} 2. Nf3 {[%emt 0:00:05]} Nc6 {[%emt 0:00:00]} 3. Bb5 {[%emt 0:00:23]} g6 {[%emt 0:00:14]} 4. d4 {[%emt 0:06:51]} exd4 {[%emt 0:01:24]} 5. Nxd4 {[%emt 0:00:20]} Bg7 {[%emt 0:00:47]} 6. Nxc6 {[%emt 0:00:58]} bxc6 {[%emt 0:00:26]} 7. Bc4 {[%emt 0:00:13] C60: Ruy Lopez: Unusual Black 3rd moves and 3...g6} Ne7 {[%emt 0:00:36]} 8. O-O {[%emt 0:04:30]} (8. Nc3 d6 9. O-O O-O 10. Be3 Be6 11. Bb3 c5 12. Qd2 Rb8 13. Rab1 Qd7 14. Bh6 Bxh6 15. Qxh6 Rb4 16. Bxe6 fxe6 17. b3 Nc6 18. Rbd1 {½-½ (34) Heinemann,T (2488)-Ernst,S (2587) Germany 2011}) 8... d5 {[%emt 0:05:37]} 9. exd5 {[%emt 0:00:28]} cxd5 {[%emt 0:00:01]} 10. Bb3 {[%emt 0:01:43]} O-O {[%emt 0:00:36]} 11. c3 {[%emt 0:01:53]} c6 $146 {[%emt 0:02:41]} ({Predecessor:} 11... Qd6 12. Be3 Be6 13. Bd4 f6 14. Nd2 c5 15. Be3 Nf5 16. Re1 Rfe8 17. Nf3 Nxe3 18. Rxe3 Bf7 19. Rxe8+ Rxe8 20. Qd2 {½-½ (20) Sevenyuk,A (1899)-Kulago,A (2144) Rogaska Slatina 2009}) 12. Re1 {[%emt 0:04:59]} Be6 {[%emt 0:07:39]} 13. Be3 {[%emt 0:02:12]} Nf5 {[%emt 0:01:11]} 14. Bc5 {[%emt 0:01:33]} Re8 {[%emt 0:00:11]} 15. Nd2 {[%emt 0:01:11]} Qc7 {[%emt 0:01:05]} 16. Nf3 {[%emt 0:03:58]} Nd6 {[%emt 0:02:34]} 17. Ng5 {[%emt 0:06:16]} Bf5 {[%emt 0:03:32]} 18. Qf3 {[%emt 0:02:54]} Ne4 {[%emt 0:05:33]} 19. Nxe4 {[%emt 0:02:58]} Rxe4 {[%emt 0:04:24]} 20. Rxe4 {[%emt 0:01:22]} Bxe4 {[%emt 0:00:01]} 21. Qe3 {[%emt 0:02:05]} a5 {[%emt 0:03:13]} 22. Ba4 {[%emt 0:09:54]} Rb8 {[%emt 0:02:35]} 23. Qe2 {[%emt 0:10:22]} Be5 {[%emt 0:00:58]} 24. g3 {[%emt 0:03:53]} h5 {[%emt 0:01:53]} 25. Re1 {[%emt 0:03:29]} Bg7 {[%emt 0:03:56]} 26. Qd2 {[%emt 0:07:14]} Qc8 {[%emt 0:01:39]} 27. Bd1 {[%emt 0:06:01]} Qh3 {[%emt 0:08:54]} 28. f3 {[%emt 0:00:02]} Bf5 {[%emt 0:00:17]} 29. Be2 {[%emt 0:03:09]} Be6 {[%emt 0:00:48]} 30. b3 {[%emt 0:03:09]} Qf5 {[%emt 0:02:17]} 31. Bd3 {[%emt 0:00:21]} Qxf3 {[%emt 0:03:39]} 32. Rf1 {[%emt 0:07:09]} Qg4 {[%emt 0:00:22]} 33. Be2 {[%emt 0:00:02] [#]} Qe4 {[%emt 0:02:52]} ({Better is} 33... Bxc3 $1 $17 {[%mdl 512]} 34. Qxc3 Qxe2) 34. Bd6 {[%emt 0:00:31]} Re8 {[%emt 0:01:48]} 35. Bf3 {[%emt 0:00:07]} Qf5 {[%emt 0:00:34]} 36. Bg2 {[%emt 0:00:10]} d4 {[%emt 0:06:41]} ({But not} 36... Qg4 37. h3 $18) 37. Rxf5 {[%emt 0:00:27]} dxc3 {[%emt 0:00:08]} 38. Qe2 {[%emt 0:00:15]} gxf5 {[%emt 0:00:25]} 39. Qxh5 {[%emt 0:01:07]} c2 {[%emt 0:01:59]} 40. Qg5 {[%emt 0:00:28]} Bd5 {[%emt 0:00:26]} 41. Bf4 {[%emt 0:30:40]} Kf8 {[%emt 0:31:51]} 42. Bc1 {[%emt 0:01:45]} Bd4+ {[%emt 0:02:39]} 43. Kf1 {[%emt 0:00:02]} Bxg2+ {[%emt 0:01:35]} 44. Kxg2 {[%emt 0:00:01]} Re2+ {[%emt 0:00:45]} 45. Kf1 {[%emt 0:00:05]} Rf2+ {[%emt 0:00:26]} 46. Ke1 {[%emt 0:00:02]} c5 {[%emt 0:00:28]} 47. Qd8+ {[%emt 0:00:27]} Kg7 {[%emt 0:00:14]} 48. Qxd4+ {[%emt 0:00:03]} cxd4 {[%emt 0:00:20]} 49. Kxf2 {[%emt 0:00:01]} 1-0